Cogmind - Beta 15 @@@ ROGUE MODE // 2025.06.24 @ 21:33:28 Player: MAC-Bot 2145 Result: Destroyed by G-47 Trooper with Particle Gun Performance ------------- Evolutions (2) 1000 Regions Visited (4) 800 Robots Destroyed (27) 135 Value Destroyed (596) 596 Prototype IDs (0) 0 Alien Tech Used (0) 0 Bonus (0) 0 TOTAL SCORE: 2531 Bonus ------- None Cogmind --------- Core Integrity 0/550 Matter 211/300 Energy 99/100 System Corruption 0% Temperature Cool (18) Movement Core (100) Ox1 Location -8/Materials Parts ------- > --- POWER (1) -------- (None) > --- PROPULSION (3) --- (None) > --- UTILITY (5) ------ Small Storage Unit Improved Targeting Computer > --- WEAPON (2) ------- (None) > --- INVENTORY (8) ---- Ion Engine Light Ion Engine Advanced Weight Redist. System Peak State ------------ > --- POWER ------------ Light Ion Engine > --- PROPULSION ------- Armored Treads Aluminum Leg Carbon-fiber Leg > --- UTILITY ---------- Small Storage Unit Sensor Array Terrain Scanner Improved Targeting Computer > --- WEAPON ----------- Light EM Pulse Cannon Shotgun > --- INVENTORY -------- Ion Engine Light Ion Engine Light Nuclear Core Advanced Weight Redist. System Heavy EM Pulse Gun Light Assault Rifle [Rating: 18] Favorites ----------- Power Light Ion Engine Engine Light Ion Engine Power Core Light Nuclear Core Propulsion Wheel Treads Light Treads Leg Aluminum Leg Wheel Wheel Utility Small Storage Unit Device Terrain Scanner Storage Small Storage Unit Processor Improved Targeting Computer Protection Utility Shielding Weapon Shotgun Energy Gun Medium Laser Energy Cannon Light EM Pulse Cannon Ballistic Gun Shotgun Ballistic Cannon Bore Cannon Build | -11 -10 -10 -9 -8 ------- Run | Yrd Mat Min Mat Mat Slots Evolved 4 | . . . 2 2 Power . | . . . . . Propulsion 1 | . . . . 1 Utility 3 | . . . 2 1 Weapon . | . . . . . Parts Attached 40 | 6 3 2 21 8 Power 8 | 1 1 1 4 1 Engine 6 | 1 1 1 3 . Core 2 | . . . 1 1 Reactor . | . . . . . Propulsion 9 | 2 . . 5 2 Treads 2 | . . . 1 1 Leg 2 | . . . 1 1 Wheel 5 | 2 . . 3 . Hover . | . . . . . Flight . | . . . . . Utility 11 | 1 1 . 8 1 Device 6 | . . . 5 1 Storage 2 | 1 . . 1 . Processor 2 | . 1 . 1 . Hackware . | . . . . . Protection 1 | . . . 1 . Artifact . | . . . . . Weapon 12 | 2 1 1 4 4 Energy Gun 3 | 1 . . . 2 Energy Cannon 1 | . . . . 1 Ballistic Gun 7 | 1 1 . 4 1 Ballistic Cannon 1 | . . 1 . . Launcher . | . . . . . Special Weapon . | . . . . . Impact Weapon . | . . . . . Slashing Weapon . | . . . . . Piercing Weapon . | . . . . . Special Melee Weapon . | . . . . . Unidentified Prototypes . | . . . . . Parts Lost 30 | . . . 14 16 Power 6 | . . . 3 3 Propulsion 9 | . . . 5 4 Utility 7 | . . . 4 3 Weapon 8 | . . . 2 6 Highest Loss Streak 12 | . . . 12 11 To Critical Strikes . | . . . . . Average Backups 5 | 3 6 6 5 5 Power 1 | . . . 1 2 Propulsion 1 | 2 3 2 . . Utility 1 | . 1 3 1 1 Weapon . | . . . 1 1 Tool/Special . | . . . . . Unused Backups 8 | . 2 3 . 3 Power 2 | . . . . 2 Propulsion 4 | . 2 2 . . Utility 2 | . . 1 . 1 Weapon . | . . . . . Tool/Special . | . . . . . Average Slot Usage (%) 82 | . 94 100 83 69 Engine 9 | . 14 14 9 7 Treads 5 | . . . 5 9 Leg 3 | . . . 3 6 Wheel 9 | . 28 28 4 . Device 12 | . . . 19 11 Storage 11 | . 14 14 11 9 Processor 8 | . 8 14 7 9 Protection 1 | . . . 3 . Energy Gun 1 | . 7 . . 2 Ballistic Gun 16 | . 20 22 17 13 Ballistic Cannon 1 | . . 5 1 . Peak Build Rating 18 | 6 8 13 15 18 Average Rating 10 | 3 7 9 10 13 On Entrance 7 | . 6 8 13 11 Naked Turns . | . . . . . Heaviest Build 23 | 12 12 20 23 22 Greatest Support 40 | 20 20 20 26 40 Greatest Overweight (x) 4 | . . . 2 4 Average Overweight (x) . | . . . . . Largest Inventory Capacity 8 | 8 8 8 8 8 Average Capacity 7 | 6 8 8 8 8 Most Carried 8 | 7 8 8 8 8 Average Carried 5 | 3 6 6 5 5 Final Capacity 8 | 8 8 8 8 8 Final Carried 8 | 6 6 8 5 3 Class Distribution -------------------- 76% | Mutant 23% | Scavenger-Mutant Dominant Class ---------------- Mutant | -10/Materials Mutant | -10/Mines Mutant | -9/Materials Mutant | -8/Materials Resources | -11 -10 -10 -9 -8 ----------- Run | Yrd Mat Min Mat Mat Matter Collected 958 | 224 21 129 302 282 Remotely . | . . . . . Salvage Created 717 | . . 137 273 307 Parts 63 | . . 9 26 28 Haulers Intercepted . | . . . . . Recyclers Shooed 2 | . . . . 2 Parts Field Recycled . | . . . . . Retrieved Matter . | . . . . . Parts Self-Destructed . | . . . . . Prevented . | . . . . . Kills | -11 -10 -10 -9 -8 ------- Run | Yrd Mat Min Mat Mat Combat Hostiles Destroyed 23 | . . 1 10 12 Guns 16 | . . . 4 12 Cannons 7 | . . 1 6 . Classes Destroyed 8 | . . 3 5 . Builder 1 | . . 1 . . Recycler 1 | . . 1 . . Mechanic 1 | . . . 1 . Watcher 1 | . . . 1 . Swarmer 14 | . . . 6 8 Grunt 5 | . . 1 1 3 Brawler 1 | . . . 1 . Sentry 3 | . . . 2 1 Best Kill Streak 6 | . . 3 5 6 Combat Bots Only 6 | . . 1 5 6 Max Kills in Single Turn 2 | . . 2 1 2 Gunslinging 1 | . . . . 1 Exploded . | . . . . . Melee . | . . . . . Uniques/NPCs Destroyed . | . . . . . Combat | -11 -10 -10 -9 -8 -------- Run | Yrd Mat Min Mat Mat Hostile Shots Fired 375 | . 19 11 140 205 Missed 99 | . 6 6 39 48 Hits 276 | . 13 5 101 157 Melee 7 | . . . 7 . Projectile 269 | . 13 5 94 157 Critical Strikes 8 | . . . 3 5 Damage Taken 3310 | . 138 83 1053 2036 Core 838 | . 85 16 182 555 Absorbed by Shields . | . . . . . Redirected to Shielding 4 | . . . 4 . Regen/Repaired (Parts) 45 | . . . 45 . Core Remaining (%) 71 | 100 . 59 54 . Volleys Fired 86 | . . 8 43 35 Largest 2 | . . 2 2 2 Hottest 79 | . . 68 68 79 Shots Fired 140 | . . 16 61 63 Gun 112 | . . 8 45 59 Cannon 28 | . . 8 16 4 Launcher . | . . . . . Special . | . . . . . Kinetic 123 | . . 16 61 46 Thermal 11 | . . . . 11 Explosive . | . . . . . Electromagnetic 6 | . . . . 6 Robot Hit Streak 18 | . . 2 11 18 Robot Miss Streak 7 | . . 5 7 3 Penetration Max 1 | . . 1 1 . Secondary Targets 3 | . . . . 3 Max Gunslinging Chain 1 | . . . . 1 Shots Hit Robots 91 | . . 6 35 50 Core Hits 52 | . . 3 20 29 Critical Kills 3 | . . 2 1 . Critical Parts Destroyed 4 | . . 1 3 . Critical Strikes 7 | . . 3 4 . Destroy 7 | . . 3 4 . Melee Attacks . | . . . . . Impact . | . . . . . Slashing . | . . . . . Piercing . | . . . . . Sneak Attacks . | . . . . . Combat Hostiles . | . . . . . Follow-up Attacks . | . . . . . Damage Inflicted 1475 | . . 136 553 786 Guns 1052 | . . 41 317 694 Cannons 419 | . . 95 234 90 Explosions . | . . . . . Melee . | . . . . . Ramming 4 | . . . 2 2 Kinetic 1237 | . . 136 551 550 Thermal 112 | . . . . 112 Explosive . | . . . . . Electromagnetic 122 | . . . . 122 Impact . | . . . . . Slashing . | . . . . . Piercing . | . . . . . Highest Corruption 15 | . . . 15 . Average Corruption 14 | . . . 14 . Corruption Purged . | . . . . . Corruption Blocked . | . . . . . Effects 38 | . . . 38 . Message Errors 7 | . . . 7 . Matter Fused 9 | . . . 9 . Heat Flow Errors 2 | . . . 2 . Energy Discharges 6 | . . . 6 . Parts Rejected 2 | . . . 2 . Data Loss (minor) 2 | . . . 2 . Data Loss (major) 4 | . . . 4 . Alerts 1 | . . . 1 . Misdirections 4 | . . . 4 . Weapon Failures 1 | . . . 1 . Overload Shots . | . . . . . Overflow Damage 4 | . . . 4 . Projectiles 4 | . . . 4 . Explosions . | . . . . . Melee . | . . . . . Knockbacks 3 | . . . 3 . Impact . | . . . . . Kinetic 3 | . . . 3 . Secondary . | . . . . . Self-Inflicted Damage . | . . . . . Shots . | . . . . . Rammed . | . . . . . Targets Rammed 2 | . . . 1 1 Kicked 1 | . . . . 1 Crushed 1 | . . . 1 . Highest Temperature 203 | . . 120 203 157 Average Temperature 58 | . . 61 37 71 Received Heat Transfer 978 | . 78 45 135 720 Siege Activations . | . . . . . Martial Activations . | . . . . . Shielding Activations . | . . . . . Robots Disrupted . | . . . . . Combat Hostiles . | . . . . . Robots Corrupted . | . . . . . Combat Hostiles . | . . . . . Parts Fried . | . . . . . Impact Corruptions . | . . . . . Robots Melted . | . . . . . Combat Hostiles . | . . . . . Parts Melted . | . . . . . Heat Transferred 333 | . . . . 333 Parts Sabotaged . | . . . . . Parts Stolen . | . . . . . Parts Stripped . | . . . . . Power Chain Reactions . | . . . . . Alert | -11 -10 -10 -9 -8 ------- Run | Yrd Mat Min Mat Mat Maximum Alert Level . | . . . . . Low Security (%) 100 | 100 100 100 100 100 Level 1 . | . . . . . Level 2 . | . . . . . Level 3 . | . . . . . Level 4 . | . . . . . Level 5 . | . . . . . High Security . | . . . . . Max Security . | . . . . . Peak Influence 136 | . 15 68 136 130 Initial 18 | . . . 18 . Average 26 | . . 15 23 52 Influence Increases 762 | . 15 73 334 340 Destroy 0b10 Robot/C 460 | . . 20 200 240 Destroy 0b10 Robot/NC 20 | . . 10 10 . Destroy Leader 102 | . . 10 52 40 Successful Hack 4 | . . . 4 . Disable Machine 30 | . . 15 15 . Destroy Structure 56 | . . 18 38 . Lose Combat Pursuer 90 | . 15 . 15 60 Influence Decreases 740 | . 15 25 382 318 Entered New Map 30 | . . . 30 . Time Decay 431 | . 15 25 231 160 Lost Part 279 | . . . 121 158 Squads Dispatched 5 | . 3 . . 2 Investigation 1 | . . . . 1 Extermination . | . . . . . Reinforcement 4 | . 3 . . 1 Assault . | . . . . . Garrison . | . . . . . Intercept . | . . . . . Searches Triggered . | . . . . . Construction Impeded . | . . . . . Haulers Reinforced . | . . . . . Active Scanning Responses . | . . . . . Cargo Convoy Interrupts . | . . . . . Stealth | -11 -10 -10 -9 -8 --------- Run | Yrd Mat Min Mat Mat Distress Signals 4 | . 1 . 1 2 Communications Jammed . | . . . . . Distress Signals . | . . . . . Times Spotted 59 | . 7 2 24 26 Peak Tracking Total 11 | . 4 2 11 9 Tactical Retreats 5 | . 1 . 1 3 Traps | -11 -10 -10 -9 -8 ------- Run | Yrd Mat Min Mat Mat Traps Triggered 2 | . 1 . . 1 Indirectly . | . . . . . Trap Hack Attempts . | . . . . . Triggered . | . . . . . Disarmed . | . . . . . Reprogrammed . | . . . . . Reused . | . . . . . Traps Extracted . | . . . . . Installed . | . . . . . Triggered . | . . . . . Machines | -11 -10 -10 -9 -8 ---------- Run | Yrd Mat Min Mat Mat Machines Disabled 2 | . . 1 1 . Max in Single Turn 1 | . . 1 1 . Machines Repaired . | . . . . . Machines Dismantled . | . . . . . Machines Sabotaged . | . . . . . Overloaded Fab Kills . | . . . . . Hacking | -11 -10 -10 -9 -8 --------- Run | Yrd Mat Min Mat Mat Machines Accessed 2 | . 1 . 1 . Terminals 1 | . 1 . . . Fabricators . | . . . . . Repair Stations 1 | . . . 1 . Recycling Units . | . . . . . Scanalyzers . | . . . . . Garrison Access . | . . . . . Total Hacks 4 | . 2 . 2 . Successful 3 | . 1 . 2 . Failed 1 | . 1 . . . Catastrophic . | . . . . . Database Lockouts . | . . . . . Manual . | . . . . . Terminals 2 | . 2 . . . Fabricators . | . . . . . Repair Stations 2 | . . . 2 . Recycling Units . | . . . . . Scanalyzers . | . . . . . Garrison Access . | . . . . . Terminal Hacks 1 | . 1 . . . Record 1 | . 1 . . . Fabricator Hacks . | . . . . . Repair Station Hacks 2 | . . . 2 . Scan Component 1 | . . . 1 . Repair 1 | . . . 1 . Recycling Unit Hacks . | . . . . . Scanalyzer . | . . . . . Garrison Access Hacks . | . . . . . Unauthorized Hacks . | . . . . . Terminals . | . . . . . Fabricators . | . . . . . Repair Stations . | . . . . . Recycling Units . | . . . . . Scanalyzers . | . . . . . Garrison Access . | . . . . . Data Cores Recovered . | . . . . . Used . | . . . . . Hacking Detections 1 | . 1 . . . Full Trace Events . | . . . . . Feedback Events . | . . . . . Feedback Blocked . | . . . . . Robot Schematics Acquired . | . . . . . Robots Built . | . . . . . Authchips . | . . . . . Time . | . . . . . Total Robot Build Rating . | . . . . . Part Schematics Acquired . | . . . . . Parts Built . | . . . . . Authchips . | . . . . . Time . | . . . . . Total Part Build Rating . | . . . . . Parts Repaired 1 | . . . 1 . Time 32 | . . . 32 . Parts Recycled . | . . . . . Recycled Matter . | . . . . . Retrieved Matter . | . . . . . Retrieved Components . | . . . . . Parts Scanalyzed . | . . . . . Part Schematics Acquired . | . . . . . Parts Damaged . | . . . . . Bothacking | -11 -10 -10 -9 -8 ------------ Run | Yrd Mat Min Mat Mat Used RIF Installer . | . . . . . Robots Hacked . | . . . . . Non-combat . | . . . . . Combat . | . . . . . Robot Hacks Applied . | . . . . . Relay Couplers Released . | . . . . . Fabnet Peak Effective % . | . . . . . Robots Rewired . | . . . . . Allies Hacked . | . . . . . Hacks Repelled . | . . . . . Allies | -11 -10 -10 -9 -8 -------- Run | Yrd Mat Min Mat Mat Total Allies . | . . . . . Largest Group . | . . . . . Highest-Rated Group . | . . . . . Highest-Rated Ally . | . . . . . Total Orders . | . . . . . Ally Attacks . | . . . . . Total Damage . | . . . . . Kills . | . . . . . Allies Corrupted . | . . . . . Allies Melted . | . . . . . Intel | -11 -10 -10 -9 -8 ------- Run | Yrd Mat Min Mat Mat Active Infowar (turns) 1696 | . 199 142 888 467 Optics 506 | . 199 142 165 . Sensors 902 | . . . 682 220 Terrain 1123 | . . . 684 439 Structural 150 | . . . 150 . Seismic 158 | . . . 158 . Robot Analysis Total . | . . . . . Derelict Logs Recovered 1 | . . 1 . . Drone Launches . | . . . . . Drone Recoveries . | . . . . . Exploration | -11 -10 -10 -9 -8 ------------- Run | Yrd Mat Min Mat Mat Turns Passed 1960 | 53 310 142 949 506 Spaces Moved 1292 | 47 377 134 460 274 Core 51 | 3 . . 2 46 Treads 329 | . . . 213 116 Legs 225 | . . . 113 112 Wheels 687 | 44 377 134 132 . Hover . | . . . . . Flight . | . . . . . Fastest Speed 50 | 50 80 80 80 100 Average Speed 121 | 78 80 80 161 138 Slowest Speed 260 | 80 80 80 260 250 Overloaded Moves . | . . . . . Propulsion Burnouts . | . . . . . Robots Hopped . | . . . . . Potential Cave-ins . | . . . . . Cave-ins Triggered . | . . . . . Exploration Rate (%) 23 | 3 43 30 27 14 Regions Visited 4 Branch Regions 1 Pre-discovered Areas . | . . . . . Known Exits Taken . | . . . . . Unknown Exits Taken 4 | 1 1 1 1 . Scrap Searched . | . . . . . Spaces Dug . | . . . . . Terrain Destroyed 54 | . . 18 36 . Melee . | . . . . . Projectile 15 | . . 9 6 . AOE 39 | . . 9 30 . Terrain Rammed . | . . . . . Walls Destroyed . | . . . . . Machines Disabled . | . . . . . Actions | -11 -10 -10 -9 -8 --------- Run | Yrd Mat Min Mat Mat Total 1550 | 62 386 157 608 337 Wait 64 | . . 2 59 3 Move 1288 | 46 376 133 459 274 Hop . | . . . . . Pick Up 46 | 10 5 6 17 8 Fast Attach 2 | 2 . . . . Attach 39 | 4 3 1 21 10 Detach 3 | . . 1 2 . Swap 10 | . . 1 3 6 Drop 9 | . 2 5 2 . Fire 86 | . . 8 43 35 Melee . | . . . . . Ram 1 | . . . 1 . Kick 1 | . . . . 1 Crush 1 | . . . 1 . Escape Stasis . | . . . . . Rewire . | . . . . . Trap . | . . . . . Miscellaneous . | . . . . . Route ------- -11/Scrapyard -10/Materials -10/Mines -9/Materials -8/Materials History --------- Turn | Location | Event 19 | -11/Scrapyard | Discovered new exit (range 16) 54 | -11/Scrapyard | Entered Materials 55 | -10/Materials | Met a group of wandering Federalists 91 | -10/Materials | Discovered new exit (range 9) 300 | -10/Materials | Build established: Mutant 364 | -10/Materials | Entered Mines 402 | -10/Mines | Met a Derelict bent on vengeance 409 | -10/Mines | Learned Materials garrison access intel 437 | -10/Mines | A weapon hastily lodged in a ceiling crevice suddenly fell to the ground 461 | -10/Mines | Discovered new exit (range 16) 506 | -10/Mines | Entered Materials 506 | -9/Materials | Evolved 2 slots: Utility x2 672 | -9/Materials | System corruption reached 10% 745 | -9/Materials | Lost 12 parts (3p4n3u2w) 1235 | -9/Materials | Repaired Rnf. Ion Engine 1269 | -9/Materials | Discovered new exit (range 15) 1455 | -9/Materials | Entered another Materials area 1455 | -8/Materials | Evolved 2 slots: Propulsion x1, Utility x1 1456 | -8/Materials | Loaded intel: 1 garrison access location 1662 | -8/Materials | Lost 4 parts (1n1u2w) 1890 | -8/Materials | Core integrity fell below 50% 1925 | -8/Materials | Core integrity fell below 20% 1956 | -8/Materials | Lost 11 parts (2p3n2u4w) 1961 | -8/Materials | Destroyed by G-47 Trooper with Particle Gun Last Messages --------------- Penetrated by Slug. G-47 Trooper IFF system glitched. K-01 Serf collects debris. Shotgun destroyed. K-01 Serf collects debris. Hvy. EM Pulse Gun destroyed. R-06 Scavenger collects Corrupted Carbon-fiber Leg. Penetrated by Slug. K-01 Serf destroyed. R-06 Scavenger collects Wheel. Penetrated by Slug. Lgt. Nuclear Core destroyed. Sensor Array destroyed. G-47 Trooper misfires. Penetrated by Slug. Lgt. Assault Rifle destroyed. G-47 Trooper misfires. Penetrated by Slug. K-01 Serf cleans the Processing Tank. Map ----- +----------------------------------------------------+ | ?????????????????????????????????????????????????? | | ?????????????????????????????????????????????????? | | ?????????????????????????????????????????????????? | | ?????????????????????????????????????????????????? | | ?????????????????????????????????????????????????? | | ?????????????????????????????????????????????????? | | ?????????????????????????????????????????????????? | | ?????????????????????????????????????????????????? | | ???#?????????????????????????????????????????????? | | ?????????????????????????? ?????????????????????? | | ?#????#???????????????????k#?????????????????????? | | ????#????????????????????? #?????????????????????? | | ????#??##??????????#?????? #?????????????????????? | | ???#?????#???????????????? #?????????????????????? | | ??#??????#?#???????####### #?????????????????????? | | ?#?????????#?#?????# #?????????????????????? | | ?#??##?##??###?????# #?????????????????????? | | #################### #??????????????""?????? | | #?????????????"G??????? | | #??????????????""?????? | | ############# #?##??????????????????? | | #### #?##?#??????# ##T#######????????????? | | # ##########??# w ?????????? | | # # /#??## ?????????? | | # + ] #???# """"" ?????????? | | [# # ###?# @""""" ???????????? | | "" + ############# ^""""" ?????????????????? | | ""=# % r k ?????????????????? | | "" # ############## w????????????????? | | # # # ??? ?# /gg """"" ???????????????? | | #### #? #?? ??+ """"" ??????????????? | | ?### # """ #??????# """"" #???????????????? | | ?#?# # """ #? ????# w k ????????????????????? | | ?#?# / """ #???? ?# ????????????????????? | | ???# # #??????# ?????????????????????? | | #??# # ##?##??# ! ??????????????????????? | | ??## # #????#?# ?????????????????????? | | "??# %# ##?????#######??????????????????????? | | ???# #??]] #???#???????????????????????????????? | | ??## #??] #???????????????????????????????????? | | ???# #??? ?#???????????????????????????????????? | | ???# #?????????????????????????????????????????? | | ???# #?????????????????????????????????????????? | | ???#% #?????????????????????????????????????????? | | ???# #?????????????????????????????????????????? | | ???#% #?????? ?? ??????????????????????????????? | | ???# % ##???? ???????????????????????????????????? | | ???# %##????????????????????????????????????????? | | ?? ???????????????????????????????????????? | | ??#########??????#???????????????????????????????? | +----------------------------------------------------+ Best States ------------- Heat Dissipation 31 Energy Generation 14 Energy Capacity 265 Matter Stores 300 Matter Capacity 300 Sight Range 18 Robot Scan Range 14 Terrain Scan Range 14 Terrain Scan Density 10 Utility Shielding 33 Evasion (%) 55 Targeting Accuracy 6 Recoil Reduction 2 Item Schematics ----------------- None Robot Schematics ------------------ None Fabricated ------------ Nothing Repaired ---------- Rnf. Ion Engine | 67% | -9/Materials Alien Tech Used ----------------- None Achievements -------------- None Challenges ------------ None Game ------ Seed BiometalMultinovaParser Manual? 0 Play Time 00:30:31 Cumulative 59.9 hours Start 2025.06.24 @ 21:04:35 End 2025.06.24 @ 21:33:28 Sessions 1 Manual Loads 0 Difficulty Rogue Special Mode None Game No. 54 Rogue 54 Adventurer 0 Explorer 0 Win Type - Total 0 Types 0/0/0/0/0/0/0/0/0/0 Lore% 14 Gallery% 18 Achievement% 19 Wizard Run 0 Options --------- Layout 1 ASCII 0 Keyboard 0 Movement Numpad Keybinds 0 Fullscreen 1 Font 24/Smallcaps Map View 50x35 Zoom Use 0% Tactical HUD 0 Map Filters NONE Filters NONE Steam 1 RUN: 9820b346-b14f-4f30-bf18-e2d3b1f0c642